fUST/lending_fUST_20251121
["ID","MTS","AMOUNT","RATE_DAILY","PERIOD"]
[394579590,1763733038470,-500.0,7.341e-05,2]
[394579592,1763733038480,-500.0,7.341e-05,2]
[394579594,1763733038490,-500.0,7.341e-05,2]
[394579596,1763733038500,-500.0,7.341e-05,2]
[394579598,1763733038510,-500.0,7.341e-05,2]
[394579600,1763733038519,-500.0,7.341e-05,2]
[394579602,1763733038529,-500.0,7.341e-05,2]
[394579604,1763733038539,-500.0,7.341e-05,2]
[394579606,1763733038548,-500.0,7.341e-05,2]
[394579608,1763733038558,-500.0,7.341e-05,2]
[394579610,1763733038567,-500.0,7.341e-05,2]
[394579612,1763733038577,-500.0,7.341e-05,2]
[394579614,1763733038587,-500.0,7.341e-05,2]
[394579616,1763733038596,-500.0,7.341e-05,2]
[394579618,1763733038605,-500.0,7.341e-05,2]
[394579620,1763733038615,-500.0,7.341e-05,2]
[394579622,1763733038624,-500.0,7.341e-05,2]
[394579624,1763733038633,-500.0,7.341e-05,2]
[394579626,1763733038644,-500.0,7.341e-05,2]
[394579628,1763733038653,-500.0,7.341e-05,2]
[394579629,1763733038666,-804.396535,7.341e-05,2]
[394579631,1763733038675,-804.396535,7.341e-05,2]
[394579632,1763733038685,-804.396535,7.341e-05,2]
[394579634,1763733038695,-804.396535,7.341e-05,2]
[394579636,1763733038704,-804.396535,7.341e-05,2]
[394579638,1763733038714,-804.396535,7.341e-05,2]
[394579640,1763733038729,-804.396535,7.341e-05,2]
[394579642,1763733038738,-804.396535,7.341e-05,2]
[394579644,1763733038747,-1363.73228062,7.341e-05,2]
[394579646,1763733038756,-1363.73228062,7.341e-05,2]
[394579648,1763733038766,-1363.73228062,7.341e-05,2]
[394579650,1763733038776,-1363.73228062,7.341e-05,2]
[394579652,1763733038785,-1363.73228062,7.341e-05,2]
[394579654,1763733038795,-1363.73228062,7.341e-05,2]
[394579657,1763733038806,-1363.73228062,7.341e-05,2]
[394579659,1763733038816,-1363.73228062,7.341e-05,2]
[394579661,1763733038825,-1363.73228062,7.341e-05,2]
[394579663,1763733038835,-1363.73228062,7.341e-05,2]
[394579664,1763733038844,-1363.73228062,7.341e-05,2]
[394579666,1763733038853,-1363.73228062,7.341e-05,2]
[394579668,1763733038864,-1363.73228062,7.341e-05,2]
[394579670,1763733038873,-1363.73228062,7.341e-05,2]
[394579673,1763733038883,-1363.73228062,7.341e-05,2]
[394579674,1763733038895,-1363.73228062,7.341e-05,2]
[394579676,1763733038905,-1363.73228062,7.341e-05,2]
[394579678,1763733038915,-1363.73228062,7.341e-05,2]
[394579681,1763733038925,-1363.73228062,7.341e-05,2]
[394579683,1763733038934,-1363.73228062,7.341e-05,2]
[394579685,1763733038943,-1363.73228062,7.341e-05,2]
[394579687,1763733038953,-1363.73228062,7.341e-05,2]
[394579689,1763733038962,-1363.73228062,7.341e-05,2]
[394579691,1763733038971,-1363.73228062,7.341e-05,2]
[394579692,1763733038982,-1363.73228062,7.341e-05,2]
[394579694,1763733038991,-1363.73228062,7.341e-05,2]
[394579696,1763733039001,-1363.73228062,7.341e-05,2]
[394579698,1763733039010,-1363.73228062,7.341e-05,2]
[394579700,1763733039019,-1363.73228062,7.341e-05,2]
[394579702,1763733039028,-1363.73228062,7.341e-05,2]
[394579704,1763733039037,-1363.73228062,7.341e-05,2]
[394579706,1763733039049,-1363.73228062,7.341e-05,2]
[394579708,1763733039059,-1363.73228062,7.341e-05,2]
[394579710,1763733039069,-1363.73228062,7.341e-05,2]
[394579713,1763733039079,-1363.73228062,7.341e-05,2]
[394579715,1763733039089,-1363.73228062,7.341e-05,2]
[394579717,1763733039099,-1363.73228062,7.341e-05,2]
[394579719,1763733039108,-858.02297067,7.341e-05,2]
[394579721,1763733039119,-1326.71669013,7.341e-05,2]
[394579723,1763733039129,-1326.71669013,7.341e-05,2]
[394579725,1763733039139,-858.02297067,7.341e-05,2]
[394579727,1763733039153,-1326.71669013,7.341e-05,2]
[394579729,1763733039161,-1326.71669013,7.341e-05,2]
[394579731,1763733039170,-858.02297067,7.341e-05,2]
[394579733,1763733039180,-1326.71669013,7.341e-05,2]
[394579735,1763733039190,-1326.71669013,7.341e-05,2]
[394579737,1763733039199,-1326.71669013,7.341e-05,2]
[394579739,1763733039209,-1326.71669013,7.341e-05,2]
[394579741,1763733039218,-1326.71669013,7.341e-05,2]
[394579743,1763733039228,-1326.71669013,7.341e-05,2]
[394579745,1763733039238,-1326.71669013,7.341e-05,2]
[394579747,1763733039248,-1326.71669013,7.341e-05,2]
[394579749,1763733039258,-1326.71669013,7.341e-05,2]
[394579752,1763733039267,-1326.71669013,7.341e-05,2]
[394579753,1763733039276,-205.698485,7.342e-05,2]
[394579756,1763733039286,-205.698485,7.342e-05,2]
[394579757,1763733039295,-205.698485,7.342e-05,2]
[394579760,1763733039305,-205.698485,7.342e-05,2]
[394579762,1763733039314,-205.698485,7.342e-05,2]
[394579764,1763733039323,-205.698485,7.342e-05,2]
[394579765,1763733039332,-205.698485,7.342e-05,2]
[394579766,1763733039346,-205.698485,7.342e-05,2]
[394579767,1763733039356,-205.698485,7.342e-05,2]
[394579768,1763733039365,-205.698485,7.342e-05,2]
[394579769,1763733039375,-205.698485,7.342e-05,2]
[394579770,1763733039385,-205.698485,7.342e-05,2]
[394579771,1763733039396,-205.698485,7.342e-05,2]
[394579772,1763733039405,-205.698485,7.342e-05,2]
[394579773,1763733039415,-205.698485,7.342e-05,2]
[394579774,1763733039425,-205.698485,7.342e-05,2]
[394579775,1763733039435,-500.0,7.343e-05,2]
[394579776,1763733039444,-500.0,7.343e-05,2]
[394579777,1763733039454,-205.698485,7.359e-05,2]
[394579778,1763733039463,-205.698485,7.359e-05,2]
[394579779,1763733039472,-205.698485,7.359e-05,2]
[394579780,1763733039482,-205.698481,7.359e-05,2]
[394579781,1763733039491,-622.32639581,7.363e-05,2]
[394579782,1763733039501,-500.0,7.363e-05,2]
[394579783,1763733039509,-500.0,7.363e-05,2]
[394579785,1763733039519,-500.0,7.363e-05,2]
[394579787,1763733039528,-500.0,7.363e-05,2]
[394579789,1763733039537,-500.0,7.363e-05,2]
[394579791,1763733039546,-151.0,7.613e-05,2]
[394579793,1763733039556,-151.0,7.613e-05,2]
[394579795,1763733039565,-151.0,7.613e-05,2]
[394579797,1763733039574,-151.0,7.613e-05,2]
[394579800,1763733039583,-151.0,7.613e-05,2]
[394579802,1763733039592,-151.0,7.613e-05,2]
[394579804,1763733039602,-151.0,7.613e-05,2]
[394579806,1763733039611,-223.09337994,7.613e-05,2]
[394579808,1763733039620,-500.0,7.617e-05,2]
[394579810,1763733039630,-1716.49051008,7.758e-05,2]
[394579812,1763733039639,-886.69897775,7.874e-05,2]
[394579814,1763733039650,-500.0,7.891e-05,2]
[394579816,1763733039659,-500.0,7.891e-05,2]
[394579818,1763733039669,-1000.0,7.911e-05,2]
[394579820,1763733039678,-1000.0,7.911e-05,2]
[394579822,1763733039688,-506.45546125,7.911e-05,2]
[394579824,1763733039696,-3383.8760248,7.925e-05,2]
[394579826,1763733039706,-28256.0,8e-05,2]
[394579828,1763733039715,-1181.89572078,8e-05,2]
[394579830,1763733039724,-624.79134749,8.011e-05,2]
[394579832,1763733039738,-1680.0,8.065e-05,2]
[394579835,1763733039748,-420.0,8.074e-05,2]
[394579837,1763733039759,-420.0,8.074e-05,2]
[394579839,1763733039768,-420.0,8.074e-05,2]
[394579841,1763733039778,-1680.0,8.074e-05,2]
[394579843,1763733039787,-1716.49051008,8.096e-05,2]
[394579845,1763733039796,-3383.8760248,8.199e-05,2]
[394579847,1763733039805,-375.9094348,8.219e-05,2]
[394579849,1763733039817,-3383.876025,8.234e-05,2]
[394579851,1763733039826,-1716.4905101,8.372e-05,2]
[394579853,1763733039835,-1500.0,8.458e-05,2]
[394579855,1763733039844,-224.65761302,8.813e-05,2]
[394579857,1763733039853,-2351.0,8.871e-05,2]
[394579858,1763733039862,-300.0,8.881e-05,2]
[394579861,1763733039871,-587.0,8.881e-05,2]
[394579862,1763733039881,-172.0,8.881e-05,2]
[394579864,1763733039891,-2351.0,8.881e-05,2]
[394579867,1763733039902,-886.69897775,8.951e-05,2]
[394579889,1763733040088,-2000.0,9.006e-05,2]
[394579891,1763733040101,-2500.0,9.554e-05,2]
[394579893,1763733040110,-832.0,9.758e-05,2]
[394579895,1763733040119,-823.0,9.769e-05,2]
[394579897,1763733040129,-3292.0,9.769e-05,2]
[394579899,1763733040138,-163.46915366,9.781e-05,2]
[394579901,1763733040148,-886.69897775,0.00010027,2]
[394579903,1763733040157,-1442.40510539,0.00010102,2]
[394579905,1763733040167,-1072.0,0.00010746,2]
[394579907,1763733040176,-4594.0,0.00010746,2]
[394579909,1763733040185,-212.08934615,0.00010813,2]
[394579951,1763733040571,-46.83807224,0.00010813,2]
[394579953,1763733040580,-500.0,0.00010959,2]
[394579954,1763733040590,-510.7579386,0.00010959,2]
[394579957,1763733040599,-500.0,0.00010959,2]
[394579958,1763733040608,-500.0,0.00010959,2]
[394579961,1763733040618,-500.0,0.00010959,2]
[394579963,1763733040627,-500.0,0.00010959,2]
[394579964,1763733040637,-500.0,0.00010959,2]
[394579966,1763733040648,-500.0,0.00010959,2]
[394579969,1763733040658,-500.0,0.00010959,2]
[394579971,1763733040667,-500.0,0.00010959,2]
[394579972,1763733040676,-250.0,0.00010993,2]
[394579975,1763733040686,-600.0,0.00011,2]
[394579977,1763733040696,-886.69897775,0.00011104,2]
[394579978,1763733040705,-600.0,0.00012,3]
[394579980,1763733040714,-528.6791796,0.00012145,2]
[394579982,1763733040730,-951.62252327,0.00012145,2]
[394579984,1763733040739,-1690.08160133,0.00012145,2]
[394579986,1763733040749,-886.69897775,0.00012181,2]
[394579988,1763733040758,-150.63,0.00012329,2]
[394579990,1763733040771,-467.87,0.00012329,2]
[394579993,1763733040780,-389.89,0.00012329,2]
[394579994,1763733040790,-324.91,0.00012329,2]
[394579996,1763733040799,-270.76,0.00012329,2]
[394579998,1763733040811,-225.63,0.00012329,2]
[394580000,1763733040821,-188.03,0.00012329,2]
[394580002,1763733040830,-156.69,0.00012329,2]
[394580004,1763733040840,-783.48,0.00012329,2]
[394580006,1763733040850,-293.19722377,0.00012813,2]
[394580009,1763733040860,-501.09561516,0.00012838,2]
[394580011,1763733040871,-647.9302299,0.00012838,2]
[394580012,1763733040881,-436.20531373,0.00012838,2]
[394580014,1763733040892,-500.0,0.00012856,2]
[394580016,1763733040901,-33.2685569,0.00012864,2]
[394580160,1763733042474,5000.0,0.00014,10]
[394580201,1763733045557,-209.40437684,0.0001,2]
[394580203,1763733045566,-217.15233878,0.00010548,2]
[394580204,1763733045575,-225.18697532,0.00011096,2]
[394580205,1763733045584,-233.51889341,0.00011644,2]
[394580206,1763733045593,-242.15909246,0.00012192,2]
[394580207,1763733045603,-251.11897888,0.0001274,2]
[394580208,1763733045613,-466.7314431,0.00012864,2]
[394580209,1763733045623,-500.0,0.00012864,2]
[394580210,1763733045632,-61.03942089,0.000129,2]
[394580223,1763733046307,-0.41672458,0.000129,2]
[394580226,1763733051715,5000.0,0.00014,10]
[394580227,1763733061804,5000.0,0.00014,10]
[394580294,1763733602767,461.36,1e-05,2]
[394580295,1763733603267,461.36,1e-05,2]
[394580298,1763733604355,461.36,1e-05,2]
[394580299,1763733604661,461.36,1e-05,2]
[394580300,1763733605083,461.36,1.1e-05,2]
[394580301,1763733605514,461.36,1.1e-05,2]
[394580302,1763733605949,461.36,1.1e-05,2]
[394580303,1763733606698,461.36,1.1e-05,2]
[394580304,1763733606858,461.36,1.1e-05,2]
[394580305,1763733607263,461.36,1.1e-05,2]
[394580306,1763733607718,461.36,1.2e-05,2]
[394580307,1763733608039,461.36,1.2e-05,2]
[394580308,1763733608460,461.36,1.2e-05,2]
[394580309,1763733609682,461.36,1.2e-05,2]
[394580310,1763733610073,461.36,1.2e-05,2]
[394580311,1763733610547,461.36,1.2e-05,2]
[394580312,1763733611010,461.36,1.2e-05,2]
[394580313,1763733611422,461.36,1.3e-05,2]
[394580314,1763733611848,461.36,1.3e-05,2]
[394580315,1763733612271,461.36,1.3e-05,2]
[394580316,1763733612717,461.36,1.3e-05,2]
[394580317,1763733613094,461.36,1.3e-05,2]
[394580318,1763733613518,461.36,1.3e-05,2]
[394580319,1763733613976,461.36,1.4e-05,2]
[394580320,1763733614414,461.36,1.4e-05,2]
[394580321,1763733614894,461.36,1.4e-05,2]
[394580322,1763733615313,461.36,1.4e-05,2]
[394580323,1763733615717,461.36,1.4e-05,2]
[394580324,1763733616138,461.36,1.4e-05,2]
[394580325,1763733616846,461.36,1.4e-05,2]
[394580326,1763733617037,461.36,1.5e-05,2]
[394580327,1763733618271,461.36,1.5e-05,2]
[394580328,1763733618482,461.36,1.5e-05,2]
[394580329,1763733618883,461.36,1.5e-05,2]
[394580330,1763733619349,461.36,1.5e-05,2]
[394580331,1763733619811,461.36,1.5e-05,2]
[394580332,1763733620234,461.36,1.6e-05,2]
[394580333,1763733620690,461.36,1.6e-05,2]
[394580334,1763733621124,461.36,1.6e-05,2]
[394580335,1763733621548,461.36,1.6e-05,2]
[394580336,1763733621990,461.36,1.6e-05,2]
[394580337,1763733622443,461.36,1.6e-05,2]
[394580338,1763733622878,461.36,1.6e-05,2]
[394580339,1763733623302,461.36,1.7e-05,2]
[394580340,1763733623766,461.36,1.7e-05,2]
[394580341,1763733624255,461.36,1.7e-05,2]
[394580342,1763733624724,461.36,1.7e-05,2]
[394580343,1763733625152,461.36,1.7e-05,2]
[394580344,1763733625648,461.36,1.7e-05,2]
[394580348,1763733662833,153.7,1e-05,2]
[394580349,1763733663271,153.7,1.4e-05,2]
[394580350,1763733663693,153.7,1.8e-05,2]
[394580419,1763733904692,169.7519156,3.425e-05,2]
[394580480,1763734197723,-200.00422976,6.28e-05,2]
[394580481,1763734199790,-300.0,6.28e-05,2]
[394580482,1763734227268,-300.0,6.28e-05,2]
[394580553,1763734238900,-500.0,6.279e-05,2]
[394580555,1763734238909,-500.0,6.279e-05,2]
[394580557,1763734238919,-194.23815477,6.279e-05,2]
[394580559,1763734238929,-500.0,6.279e-05,2]
[394580561,1763734238940,-500.0,6.279e-05,2]
[394580563,1763734238950,-500.0,6.279e-05,2]
[394580565,1763734238960,-500.0,6.279e-05,2]
[394580567,1763734238969,-500.0,6.279e-05,2]
[394580569,1763734238979,-500.0,6.279e-05,2]
[394580571,1763734238989,-650.00000001,6.279e-05,2]
[394580573,1763734238998,-500.0,6.279e-05,2]
[394580575,1763734239007,-500.0,6.279e-05,2]
[394580577,1763734239017,-500.0,6.279e-05,2]
[394580580,1763734239027,-500.0,6.279e-05,2]
[394580581,1763734239037,-500.0,6.279e-05,2]
[394580583,1763734239047,-500.0,6.279e-05,2]
[394580586,1763734239056,-500.0,6.279e-05,2]
[394580588,1763734239066,-13998.88849944,6.28e-05,2]
[394580590,1763734239075,-1498.0795088,6.621e-05,2]
[394580592,1763734239085,-1498.0795088,6.688e-05,2]
[394580593,1763734239094,-632.97635407,6.688e-05,2]
[394580595,1763734239103,-1498.0795088,6.756e-05,2]
[394580597,1763734239112,-1498.0795088,6.825e-05,2]
[394580599,1763734239121,-171.04440638,7.128e-05,2]
[394580601,1763734239130,-542.80084606,7.429e-05,2]
[394580603,1763734239140,-542.80084606,7.429e-05,2]
[394580605,1763734239153,-542.80084606,7.429e-05,2]
[394580607,1763734239162,-542.80084606,7.429e-05,2]
[394580609,1763734239172,-542.80084606,7.429e-05,2]
[394580611,1763734239183,-542.80084606,7.429e-05,2]
[394580613,1763734239193,-542.80084606,7.429e-05,2]
[394580615,1763734239202,-542.80084606,7.429e-05,2]
[394580617,1763734239211,-542.80084606,7.429e-05,2]
[394580619,1763734239222,-542.80084606,7.429e-05,2]
[394580621,1763734239232,-542.80084606,7.429e-05,2]
[394580623,1763734239241,-2944.98081422,7.431e-05,2]
[394580625,1763734239251,-25352.0,8e-05,2]
[394580627,1763734239260,-355.67249537,8.661e-05,2]
[394580629,1763734239270,-201.83239953,9.128e-05,2]
[394580631,1763734239280,-16192.5284833,9.402e-05,2]
[394580633,1763734239289,-355.67249537,0.0001043,2]
[394580635,1763734239299,-500.0,0.00010959,2]
[394580637,1763734239309,-507.53055702,0.00010959,2]
[394580639,1763734239318,-500.0,0.00010959,2]
[394580641,1763734239327,-500.0,0.00010959,2]
[394580643,1763734239337,-500.0,0.00010959,2]
[394580645,1763734239347,-500.0,0.00010959,2]
[394580647,1763734239356,-500.0,0.00010959,2]
[394580649,1763734239365,-232.62039268,0.00011128,2]
[394580651,1763734239375,-209.40437684,0.00011435,2]
[394580653,1763734239385,-50204.8144996,0.00011442,2]
[394580655,1763734239395,-1199.9388909,0.00011442,2]
[394580657,1763734239404,-151.0,0.00011968,2]
[394580659,1763734239414,-217.15233878,0.00011983,2]
[394580661,1763734239424,-355.67249537,0.000122,2]
[394580663,1763734239435,-209.40437684,0.00012454,2]
[394580665,1763734239444,-250.0,0.00012454,2]
[394580667,1763734239454,-250.0,0.00012454,2]
[394580669,1763734239463,-250.0,0.00012454,2]
[394580671,1763734239472,-250.0,0.00012454,2]
[394580672,1763734239482,-250.0,0.00012454,2]
[394580674,1763734239492,-250.0,0.00012454,2]
[394580676,1763734239501,-250.0,0.00012454,2]
[394580679,1763734239510,-250.0,0.00012454,2]
[394580681,1763734239519,-250.0,0.00012454,2]
[394580682,1763734239530,-250.0,0.00012454,2]
[394580685,1763734239540,-250.0,0.00012454,2]
[394580686,1763734239549,-225.18697532,0.00012531,2]
[394580688,1763734239558,-1199.9388909,0.00012617,2]
[394580691,1763734239568,-233.51889341,0.00013079,2]
[394580692,1763734239577,-263.40838583,0.00013128,2]
[394580694,1763734239586,-215.6292425,0.00013627,2]
[394580696,1763734239596,-160.0,0.0001363,2]
[394580699,1763734239606,-353.13058887,0.0001363,2]
[394580701,1763734239616,-533.44581391,0.00013673,2]
[394580702,1763734239625,-518.39835129,0.00013673,2]
[394580704,1763734239635,-216.93751187,0.00013673,2]
[394580707,1763734239644,-500.0,0.00013673,2]
[394580708,1763734239654,-501.11008755,0.00013673,2]
[394580711,1763734239664,-500.0,0.00013673,2]
[394580713,1763734239674,-500.0,0.00013673,2]
[394580714,1763734239685,-500.0,0.00013673,2]
[394580717,1763734239695,-418.18895891,0.00013673,2]
[394580718,1763734239705,-239.29299148,0.00013673,2]
[394581060,1763734246103,-1630.54079616,0.00013536,2]
[394581061,1763734246114,-6735.5290899,0.00013536,2]
[394581062,1763734246123,-260.70700852,0.00013673,2]
[394581063,1763734246132,-500.0,0.00013673,2]
[394581064,1763734246143,-511.2358338,0.00013673,2]
[394581065,1763734246153,-216.07380226,0.00013673,2]
[394581066,1763734246162,-164.7886265,0.00013673,2]
[394581067,1763734246172,-500.0,0.00013673,2]
[394581068,1763734246182,-500.93977236,0.00013673,2]
[394581069,1763734246192,-500.0,0.00013673,2]
[394581070,1763734246202,-500.0,0.00013673,2]
[394581071,1763734246212,-500.0,0.00013673,2]
[394581072,1763734246222,-500.0,0.00013673,2]
[394581073,1763734246232,-440.20457467,0.00013673,2]
[394581074,1763734246242,-500.0,0.00013673,2]
[394581075,1763734246252,-500.4540326,0.00013673,2]
[394581076,1763734246261,-271.66623535,0.00013673,2]
[394581077,1763734246270,-500.0,0.00013673,2]
[394581078,1763734246280,-500.0,0.00013673,2]
[394581079,1763734246289,-500.0,0.00013673,2]
[394581080,1763734246299,-500.0,0.00013673,2]
[394581081,1763734246308,-500.0,0.00013698,2]
[394581082,1763734246318,-500.0,0.00013698,2]
[394581083,1763734246328,-501.75107031,0.00013698,2]
[394581084,1763734246337,-196.64995373,0.00013698,2]
[394581085,1763734246451,-303.35004627,0.00013698,2]
[394581086,1763734246460,-500.0,0.00013698,2]
[394581087,1763734246470,-500.0,0.00013698,2]
[394581088,1763734246480,-163.19223795,0.00013698,2]
[394581089,1763734246491,-336.80776205,0.00013698,2]
[394581090,1763734246501,-500.0,0.00013698,2]
[394581091,1763734246510,-500.0,0.00013698,2]
[394581092,1763734246519,-500.0,0.00013698,2]
[394581093,1763734246530,-500.0,0.00013698,2]
[394581094,1763734246539,-500.0,0.00013698,2]
[394581095,1763734246548,-500.0,0.00013698,2]
[394581096,1763734246558,-500.0,0.00013698,2]
[394581097,1763734246568,-507.60971094,0.00013698,2]
[394581098,1763734246577,-339.04024279,0.00013698,2]
[394581106,1763734278116,-2471.43107108,6.155e-05,2]
[394581107,1763734278154,-2471.43107108,6.217e-05,2]
[394581108,1763734286669,4800.115599,6.217e-05,2]
[394581109,1763734295445,1214.86446684,6.217e-05,2]
[394581112,1763734312082,1214.86446684,6.217e-05,2]
[394581113,1763734320909,1214.86446684,6.217e-05,2]
[394581141,1763734336802,1214.86446684,6.217e-05,2]
[394581173,1763734345373,1214.86446684,6.217e-05,2]
[394581202,1763734361432,1214.86446684,6.217e-05,2]
[394581204,1763734369971,1214.86446684,6.217e-05,2]
[394581209,1763734381878,228.11,1e-05,2]
[394581210,1763734382195,228.11,1e-05,2]
[394581212,1763734382495,228.11,1e-05,2]
[394581213,1763734382801,228.11,1e-05,2]
[394581214,1763734383443,228.11,1.1e-05,2]
[394581215,1763734383672,228.11,1.1e-05,2]
[394581216,1763734383814,228.11,1.1e-05,2]
[394581217,1763734384107,228.11,1.1e-05,2]
[394581218,1763734384576,228.11,1.1e-05,2]
[394581219,1763734384867,228.11,1.1e-05,2]
[394581220,1763734385163,228.11,1.2e-05,2]
[394581221,1763734385491,228.11,1.2e-05,2]
[394581222,1763734385803,228.11,1.2e-05,2]
[394581223,1763734386094,228.11,1.2e-05,2]
[394581224,1763734386241,1214.86446684,6.217e-05,2]
[394581225,1763734386392,228.11,1.2e-05,2]
[394581226,1763734386821,228.11,1.2e-05,2]
[394581227,1763734387048,228.11,1.2e-05,2]
[394581228,1763734387383,228.11,1.3e-05,2]
[394581229,1763734387867,228.11,1.3e-05,2]
[394581230,1763734391582,228.11,1.3e-05,2]
[394581231,1763734391897,228.11,1.3e-05,2]
[394581232,1763734392198,228.11,1.3e-05,2]
[394581233,1763734392535,228.11,1.3e-05,2]
[394581234,1763734392843,228.11,1.4e-05,2]
[394581235,1763734393153,228.11,1.4e-05,2]
[394581236,1763734393464,228.11,1.4e-05,2]
[394581237,1763734393771,228.11,1.4e-05,2]
[394581238,1763734394075,228.11,1.4e-05,2]
[394581239,1763734394450,228.11,1.4e-05,2]
[394581240,1763734394587,1214.86446684,6.217e-05,2]
[394581241,1763734394752,228.11,1.4e-05,2]
[394581242,1763734395071,228.11,1.5e-05,2]
[394581243,1763734395385,228.11,1.5e-05,2]
[394581244,1763734395707,228.11,1.5e-05,2]
[394581245,1763734396033,228.11,1.5e-05,2]
[394581246,1763734396340,228.11,1.5e-05,2]
[394581247,1763734396648,228.11,1.5e-05,2]
[394581248,1763734397370,228.11,1.6e-05,2]
[394581249,1763734397438,228.11,1.6e-05,2]
[394581250,1763734397627,228.11,1.6e-05,2]
[394581251,1763734398045,228.11,1.6e-05,2]
[394581253,1763734398392,228.11,1.6e-05,2]
[394581254,1763734398695,228.11,1.6e-05,2]
[394581255,1763734398999,228.11,1.6e-05,2]
[394581256,1763734399291,228.11,1.7e-05,2]
[394581257,1763734399702,228.11,1.7e-05,2]
[394581258,1763734400017,228.11,1.7e-05,2]
[394581259,1763734400325,228.11,1.7e-05,2]
[394581260,1763734400622,228.11,1.7e-05,2]
[394581261,1763734400920,228.11,1.7e-05,2]
[394581263,1763734410449,1214.86446684,6.217e-05,2]
[394581268,1763734418633,1214.86446684,6.217e-05,2]
[394581270,1763734435168,1214.86446684,6.217e-05,2]
[394581272,1763734442267,228.1,1e-05,2]
[394581273,1763734443542,1214.86446684,6.217e-05,2]
[394581274,1763734453210,1214.86446684,6.217e-05,2]
[394581275,1763734461632,1214.86446684,6.217e-05,2]
[394581276,1763734470830,685.70311408,6.217e-05,2]
[394581277,1763734470857,529.16135276,6.217e-05,2]
[394581278,1763734479319,1214.86446684,6.217e-05,2]
[394581279,1763734487943,1214.86446684,6.217e-05,2]
[394581281,1763734496392,1214.86446684,6.217e-05,2]
[394581287,1763734505153,1214.86446684,6.217e-05,2]
[394581288,1763734513377,1214.86446684,6.217e-05,2]
[394581292,1763734523427,1214.86446684,6.217e-05,2]
[394581293,1763734531878,1214.86446684,6.217e-05,2]
[394581296,1763734540871,1214.86446684,6.217e-05,2]
[394581302,1763734549009,1214.86446684,6.217e-05,2]
[394581303,1763734558378,1214.86446684,6.217e-05,2]
[394581304,1763734560780,1000.0,6.278e-05,2]
[394581305,1763734562261,855.41,1e-05,2]
[394581306,1763734562593,855.41,1e-05,2]
[394581307,1763734562884,855.41,1.1e-05,2]
[394581308,1763734563499,855.41,1.1e-05,2]
[394581309,1763734563577,855.41,1.1e-05,2]
[394581310,1763734563786,855.41,1.2e-05,2]
[394581311,1763734564086,855.41,1.2e-05,2]
[394581312,1763734564573,855.41,1.2e-05,2]
[394581313,1763734564885,855.41,1.2e-05,2]
[394581314,1763734565192,855.41,1.3e-05,2]
[394581315,1763734565491,855.41,1.3e-05,2]
[394581316,1763734565798,855.41,1.3e-05,2]
[394581317,1763734566096,855.41,1.4e-05,2]
[394581318,1763734566395,855.41,1.4e-05,2]
[394581319,1763734566719,855.41,1.4e-05,2]
[394581320,1763734566825,855.41,1.089e-05,2]
[394581321,1763734567253,855.41,1.5e-05,2]
[394581322,1763734567579,855.41,1.5e-05,2]
[394581323,1763734567984,855.41,1.5e-05,2]
[394581324,1763734568310,855.41,1.6e-05,2]
[394581325,1763734568609,855.41,1.6e-05,2]
[394581326,1763734568926,855.41,1.6e-05,2]
[394581327,1763734569236,855.41,1.6e-05,2]
[394581328,1763734569544,855.41,1.7e-05,2]
[394581329,1763734569867,855.41,1.7e-05,2]
[394581330,1763734570209,855.41,1.7e-05,2]
[394581331,1763734570663,855.41,1.8e-05,2]
[394581332,1763734570873,855.41,1.8e-05,2]
[394581333,1763734571190,855.41,1.8e-05,2]
[394581334,1763734571491,855.41,1.9e-05,2]
[394581335,1763734571792,855.41,1.9e-05,2]
[394581336,1763734572083,855.41,1.9e-05,2]
[394581337,1763734572414,855.41,1.9e-05,2]
[394581338,1763734572902,855.41,2e-05,2]